fUST/lending_fUST_20250713
["ID","MTS","AMOUNT","RATE_DAILY","PERIOD"]
[371758317,1752418557152,205.7549729,0.00022176,6]
[371758318,1752418557228,205.7549729,0.00022486,7]
[371758319,1752418557320,205.7549729,0.00022797,7]
[371758320,1752418557398,205.7549729,0.00023107,8]
[371758321,1752418557497,205.7549729,0.00023417,9]
[371758322,1752418557591,205.7549729,0.00023728,9]
[371758323,1752418557682,205.7549729,0.00024038,10]
[371758324,1752418557767,205.7549729,0.00024348,11]
[371758325,1752418557823,250.0,0.00025,7]
[371758326,1752418557878,205.7549729,0.00024659,11]
[371758327,1752418557933,205.7549729,0.00024969,12]
[371758328,1752418558125,250.0,0.00025,7]
[371758329,1752418562189,500.0,0.00025,7]
[371758330,1752418562693,500.0,0.00025,7]
[371758331,1752418563118,500.0,0.00025,7]
[371758332,1752418563544,500.0,0.00025,7]
[371758333,1752418565745,500.0,0.00025,7]
[371758334,1752418566166,500.0,0.00025,7]
[371758335,1752418626599,151.0,0.000241,5]
[371758336,1752418626971,151.0,0.000233,6]
[371758352,1752418666625,698.3,0.00025,7]
[371758363,1752418807911,449.557037,0.00013699,2]
[371758364,1752418808248,628.47,0.000223,7]
[371758366,1752418823236,151.0,0.00025,7]
[371758367,1752418829454,151.0,0.00025,7]
[371758379,1752418837634,507.57,0.00022558,6]
[371758380,1752418837759,507.57,0.00022658,5]
[371758381,1752418837894,507.57,0.00022958,7]
[371758382,1752418837951,507.57,0.00023058,7]
[371758383,1752418838156,507.57,0.00023258,6]
[371758384,1752418838203,507.57,0.00023358,6]
[371758385,1752418838257,507.57,0.00023458,6]
[371758386,1752418838306,507.57,0.00023558,5]
[371758387,1752418838473,507.57,0.00023758,5]
[371758388,1752418838533,507.57,0.00023958,7]
[371758389,1752418838720,507.57,0.00024058,7]
[371758390,1752418840864,507.57,0.00023658,5]
[371758391,1752418872843,500.0,0.00025,5]
[371758392,1752418881119,151.0,0.00025,7]
[371758397,1752418906766,265.04993,0.00024651,7]
[371758398,1752418907454,265.04993,0.000249,7]
[371758399,1752418911804,151.0,0.00022191,7]
[371758400,1752418912284,159.195964,0.000249,7]
[371758401,1752418913242,265.04993,0.00024651,7]
[371758402,1752418913650,265.049921,0.000249,7]
[371758403,1752418942043,-300.0,0.00016336,2]
[371758404,1752418942070,-629.0,0.00016337,2]
[371758405,1752418942094,-1200.0,0.00016337,2]
[371758406,1752418942118,-752.88586944,0.00016338,2]
[371758407,1752418942142,-140000.0,0.00016338,2]
[371758408,1752418942165,-904.83,0.00016426,3]
[371758409,1752418942187,-50000.0,0.00016436,2]
[371758410,1752418942210,-215.80596835,0.00016436,2]
[371758411,1752418942234,-650.55620881,0.00016436,2]
[371758412,1752418942257,-471.14584976,0.00016436,2]
[371758413,1752418942286,-500.0,0.00016436,2]
[371758414,1752418942310,-500.0,0.00016436,2]
[371758415,1752418942336,-500.0,0.00016436,2]
[371758416,1752418942361,-500.0,0.00016436,2]
[371758417,1752418942384,-238.473546,0.00016436,2]
[371758418,1752418942409,-500.0,0.00016436,2]
[371758419,1752418942435,-213.05556919,0.00016436,2]
[371758420,1752418942458,-431.25269119,0.00016436,2]
[371758421,1752418942479,-500.0,0.00016436,2]
[371758422,1752418942499,-500.0,0.00016436,2]
[371758423,1752418942520,-492.99429726,0.00016436,2]
[371758424,1752418951439,565.62,0.000247,7]
[371758425,1752418961423,219.596,0.000249,7]
[371758426,1752418961853,219.596,0.00025,7]
[371758427,1752418965589,219.596,0.000249,7]
[371758428,1752418965997,219.596,0.00025,7]
[371758429,1752418994602,1995.6666594,0.00016238,2]
[371758430,1752419012030,155.0,0.00025,30]
[371758431,1752419023642,151.0,0.00025,7]
[371758432,1752419034047,151.0,0.00025,7]
[371758433,1752419056396,166.1,0.000249,7]
[371758434,1752419056589,166.1,0.00025,7]
[371758435,1752419060824,166.1,0.000249,7]
[371758436,1752419061200,166.1,0.00025,7]
[371758437,1752419098871,509.06,0.000247,7]
[371758438,1752419100380,177.05523,0.000249,7]
[371758439,1752419101472,177.05523,0.00025,7]
[371758440,1752419117542,177.05523,0.000249,7]
[371758441,1752419118644,177.05523,0.00025,7]
[371758443,1752419128152,193.52613,0.00024651,7]
[371758444,1752419128612,193.52613,0.000249,7]
[371758445,1752419133181,193.52613,0.00024651,7]
[371758446,1752419134196,193.526139,0.000249,7]
[371758447,1752419242214,458.15,0.000246,7]
[371758448,1752419242266,151.0,0.00024705,7]
[371758449,1752419242634,151.0,0.000249,7]
[371758450,1752419243146,151.0,0.00025,7]
[371758473,1752419316339,5000.0,0.00025,5]
[371758488,1752419338608,5000.0,0.00025,5]
[371758490,1752419346535,1054.45320435,0.00025,5]
[371758491,1752419354783,5000.0,0.00025,5]
[371758492,1752419355754,5895.71268833,0.00025,5]
[371758493,1752419370506,5000.0,0.00025,5]
[371758498,1752419382200,191.46358,0.00015437,2]
[371758499,1752419385934,5000.0,0.00025,5]
[371758500,1752419386484,412.34,0.000247,7]
[371758501,1752419403850,5000.0,0.00025,5]
[371758502,1752419414566,1271.54660187,0.00015437,2]
[371758503,1752419419102,5000.0,0.00025,5]
[371758504,1752419430628,151.0,0.00023288,7]
[371758505,1752419431004,151.0,0.00023288,7]
[371758525,1752419432678,-823.53,0.00016428,3]
[371758527,1752419432688,-300.0,0.00016435,2]
[371758529,1752419432697,-300.0,0.00016435,2]
[371758530,1752419432706,-300.0,0.00016436,2]
[371758531,1752419432716,-1200.0,0.00016436,2]
[371758532,1752419432725,-500.0,0.00016437,2]
[371758533,1752419432735,-500.0,0.00016437,2]
[371758534,1752419432745,-500.0,0.00016437,2]
[371758535,1752419432754,-201.453028,0.00016437,2]
[371758669,1752419434890,5000.0,0.00025,5]
[371758706,1752419439046,-2360.67150701,0.00016338,2]
[371758708,1752419439056,-298.546972,0.00016437,2]
[371758710,1752419439066,-500.0,0.00016437,2]
[371758712,1752419439076,-500.0,0.00016437,2]
[371758714,1752419439085,-500.0,0.00016437,2]
[371758716,1752419439094,-500.0,0.00016437,2]
[371758718,1752419439104,-500.0,0.00016437,2]
[371758720,1752419439114,-162.45072795,0.00016437,2]
[371758722,1752419439124,-500.0,0.00016437,2]
[371758724,1752419439133,-500.0,0.00016437,2]
[371758726,1752419439143,-500.0,0.00016437,2]
[371758728,1752419439152,-500.0,0.00016437,2]
[371758730,1752419439162,-427.7839644,0.00016437,2]
[371758732,1752419439172,-500.0,0.00016437,2]
[371758734,1752419439181,-501.40863888,0.00016437,2]
[371758736,1752419439191,-500.0,0.00016437,2]
[371758738,1752419439201,-383.17767505,0.00016437,2]
[371758740,1752419439211,-500.0,0.00016437,2]
[371758742,1752419439220,-500.0,0.00016437,2]
[371758744,1752419439229,-465.52613054,0.00016437,2]
[371758746,1752419439239,-500.0,0.00016437,2]
[371758748,1752419439249,-500.0,0.00016437,2]
[371758750,1752419439258,-300.0,0.00016437,2]
[371758752,1752419439269,-500.0,0.00016437,2]
[371758754,1752419439279,-500.0,0.00016437,2]
[371758756,1752419439288,-500.0,0.00016437,2]
[371758758,1752419439299,-500.0,0.00016437,2]
[371758761,1752419439309,-335.80031863,0.00016437,2]
[371758763,1752419439319,-500.0,0.00016437,2]
[371758765,1752419439329,-500.0,0.00016437,2]
[371758766,1752419439339,-500.0,0.00016437,2]
[371758769,1752419439351,-500.0,0.00016437,2]
[371758771,1752419439362,-500.0,0.00016437,2]
[371758773,1752419439372,-500.0,0.00016437,2]
[371758775,1752419439382,-500.0,0.00016437,2]
[371758777,1752419439391,-500.0,0.00016437,2]
[371758779,1752419439400,-500.0,0.00016437,2]
[371758780,1752419439409,-500.0,0.00016437,2]
[371758783,1752419439419,-500.0,0.00016437,2]
[371758785,1752419439429,-500.0,0.00016437,2]
[371758787,1752419439439,-500.0,0.00016437,2]
[371758789,1752419439449,-500.0,0.00016437,2]
[371758791,1752419439462,-500.0,0.00016437,2]
[371758793,1752419439472,-500.0,0.00016437,2]
[371758795,1752419439481,-500.0,0.00016437,2]
[371758797,1752419439491,-500.0,0.00016437,2]
[371758799,1752419439501,-500.0,0.00016437,2]
[371758801,1752419439511,-500.0,0.00016437,2]
[371758803,1752419439522,-500.0,0.00016437,2]
[371758805,1752419439531,-500.0,0.00016437,2]
[371758807,1752419439540,-280.99867959,0.00016437,2]
[371758809,1752419439550,-500.0,0.00016437,2]
[371758811,1752419439559,-460.0,0.00016438,2]
[371758813,1752419439569,-464.65284332,0.00016438,2]
[371758814,1752419439580,-460.0,0.00016438,2]
[371758816,1752419439590,-460.0,0.00016438,2]
[371758818,1752419439600,-460.0,0.00016438,2]
[371758820,1752419439610,-460.0,0.00016438,2]
[371758823,1752419439620,-460.0,0.00016438,2]
[371758835,1752419439732,-460.0,0.00016438,2]
[371758837,1752419439742,-460.0,0.00016438,2]
[371758839,1752419439752,-462.19168096,0.00016438,2]
[371758841,1752419439762,-460.0,0.00016438,2]
[371758843,1752419439774,-460.0,0.00016438,2]
[371758845,1752419439783,-460.0,0.00016438,2]
[371758847,1752419439793,-460.0,0.00016438,2]
[371758849,1752419439803,-560.31337563,0.00016438,2]
[371758851,1752419439813,-460.0,0.00016438,2]
[371758853,1752419439823,-460.0,0.00016438,2]
[371758855,1752419439833,-460.0,0.00016438,2]
[371758857,1752419439842,-460.0,0.00016438,2]
[371758859,1752419439853,-460.0,0.00016438,2]
[371758861,1752419439863,-460.0,0.00016438,2]
[371758863,1752419439873,-460.0,0.00016438,2]
[371758865,1752419439883,-460.0,0.00016438,2]
[371758867,1752419439894,-460.0,0.00016438,2]
[371758869,1752419439903,-460.0,0.00016438,2]
[371758871,1752419439913,-460.0,0.00016438,2]
[371758873,1752419439923,-396.87611091,0.00016438,2]
[371758875,1752419439932,-460.0,0.00016438,2]
[371758877,1752419439942,-460.0,0.00016438,2]
[371758879,1752419439952,-460.30007351,0.00016438,2]
[371758881,1752419439961,-468.87542366,0.00016438,2]
[371758883,1752419439971,-460.0,0.00016438,2]
[371758885,1752419439981,-460.0,0.00016438,2]
[371758888,1752419439991,-460.0,0.00016438,2]
[371758889,1752419440001,-460.0,0.00016438,2]
[371758891,1752419440011,-460.0,0.00016438,2]
[371758893,1752419440021,-460.0,0.00016438,2]
[371758895,1752419440031,-460.0,0.00016438,2]
[371758897,1752419440040,-460.0,0.00016438,2]
[371758901,1752419440050,-460.0,0.00016438,2]
[371758903,1752419440060,-460.0,0.00016438,2]
[371758905,1752419440070,-460.0,0.00016438,2]
[371758907,1752419440080,-460.0,0.00016438,2]
[371758909,1752419440089,-460.0,0.00016438,2]
[371758910,1752419440098,-460.0,0.00016438,2]
[371758912,1752419440108,-460.0,0.00016438,2]
[371758915,1752419440118,-460.0,0.00016438,2]
[371758917,1752419440127,-460.0,0.00016438,2]
[371758918,1752419440137,-460.0,0.00016438,2]
[371758920,1752419440146,-460.0,0.00016438,2]
[371758923,1752419440156,-460.0,0.00016438,2]
[371758924,1752419440166,-460.0,0.00016438,2]
[371758926,1752419440176,-460.0,0.00016438,2]
[371758928,1752419440187,-460.0,0.00016438,2]
[371758931,1752419440197,-460.0,0.00016438,2]
[371758933,1752419440207,-1006.45798807,0.00016438,2]
[371758935,1752419440217,-460.0,0.00016438,2]
[371758937,1752419440226,-460.0,0.00016438,2]
[371758939,1752419440236,-460.0,0.00016438,2]
[371758941,1752419440246,-460.0,0.00016438,2]
[371758943,1752419440255,-460.0,0.00016438,2]
[371758944,1752419440265,-460.0,0.00016438,2]
[371758946,1752419440276,-460.0,0.00016438,2]
[371758948,1752419440285,-460.0,0.00016438,2]
[371758950,1752419440295,-460.0,0.00016438,2]
[371758952,1752419440305,-460.0,0.00016438,2]
[371758954,1752419440316,-460.0,0.00016438,2]
[371758956,1752419440326,-460.0,0.00016438,2]
[371758959,1752419440340,-460.0,0.00016438,2]
[371758961,1752419440350,-460.0,0.00016438,2]
[371758963,1752419440360,-460.0,0.00016438,2]
[371758965,1752419440369,-460.0,0.00016438,2]
[371758967,1752419440378,-460.0,0.00016438,2]
[371758968,1752419440388,-460.0,0.00016438,2]
[371758970,1752419440397,-463.04917115,0.00016438,2]
[371758973,1752419440407,-460.0,0.00016438,2]
[371758975,1752419440418,-460.0,0.00016438,2]
[371758977,1752419440428,-460.0,0.00016438,2]
[371758979,1752419440438,-460.0,0.00016438,2]
[371758981,1752419440447,-460.0,0.00016438,2]
[371758983,1752419440456,-460.0,0.00016438,2]
[371758985,1752419440466,-460.0,0.00016438,2]
[371758986,1752419440476,-460.0,0.00016438,2]
[371758988,1752419440485,-460.0,0.00016438,2]
[371758990,1752419440495,-460.0,0.00016438,2]
[371758992,1752419440505,-460.0,0.00016438,2]
[371758994,1752419440514,-465.26912843,0.00016438,2]
[371758996,1752419440525,-460.0,0.00016438,2]
[371758998,1752419440535,-463.10062697,0.00016438,2]
[371759000,1752419440544,-460.0,0.00016438,2]
[371759002,1752419440553,-460.0,0.00016438,2]
[371759005,1752419440562,-463.28394543,0.00016438,2]
[371759007,1752419440572,-460.0,0.00016438,2]
[371759009,1752419440583,-460.0,0.00016438,2]
[371759011,1752419440593,-462.16919399,0.00016438,2]
[371759013,1752419440602,-460.0,0.00016438,2]
[371759015,1752419440611,-461.44362902,0.00016438,2]
[371759017,1752419440620,-460.0,0.00016438,2]
[371759018,1752419440630,-463.17609416,0.00016438,2]
[371759020,1752419440639,-463.68185771,0.00016438,2]
[371759022,1752419440649,-460.63824577,0.00016438,2]
[371759024,1752419440660,-460.0,0.00016438,2]
[371759026,1752419440671,-151.98443962,0.00016438,2]
[371759028,1752419440680,-460.0,0.00016438,2]
[371759030,1752419440689,-460.0,0.00016438,2]
[371759032,1752419440699,-460.0,0.00016438,2]
[371759034,1752419440708,-462.31620238,0.00016438,2]
[371759036,1752419440718,-460.0,0.00016438,2]
[371759038,1752419440727,-460.0,0.00016438,2]
[371759040,1752419440737,-460.0,0.00016438,2]
[371759042,1752419440747,-462.09595828,0.00016438,2]
[371759044,1752419440757,-460.0,0.00016438,2]
[371759046,1752419440769,-460.0,0.00016438,2]
[371759048,1752419440779,-460.0,0.00016438,2]
[371759050,1752419440788,-460.0,0.00016438,2]
[371759052,1752419440800,-460.0,0.00016438,2]
[371759054,1752419440811,-460.0,0.00016438,2]
[371759056,1752419440821,-460.0,0.00016438,2]
[371759058,1752419440831,-460.0,0.00016438,2]
[371759060,1752419440841,-460.0,0.00016438,2]
[371759062,1752419440851,-460.0,0.00016438,2]
[371759064,1752419440860,-460.0,0.00016438,2]
[371759066,1752419440870,-460.0,0.00016438,2]
[371759067,1752419440879,-460.0,0.00016438,2]
[371759069,1752419440889,-460.0,0.00016438,2]
[371759071,1752419440898,-460.0,0.00016438,2]
[371759073,1752419440907,-446.6919503,0.00016438,2]
[371759075,1752419440917,-500.0,0.00016438,2]
[371759077,1752419440926,-500.0,0.00016438,2]
[371759079,1752419440936,-460.0,0.00016438,2]
[371759081,1752419440945,-500.0,0.00016438,2]
[371759083,1752419440955,-460.0,0.00016438,2]
[371759085,1752419440964,-500.0,0.00016438,2]
[371759087,1752419440974,-239.68016891,0.00016438,2]
[371759089,1752419440984,-460.0,0.00016438,2]
[371759091,1752419440994,-460.0,0.00016438,2]
[371759093,1752419441004,-460.0,0.00016438,2]
[371759095,1752419441013,-308.62738373,0.00016438,2]
[371759096,1752419441024,-460.0,0.00016438,2]
[371759098,1752419441034,-460.0,0.00016438,2]
[371759100,1752419441044,-460.0,0.00016438,2]
[371759102,1752419441053,-460.0,0.00016438,2]
[371759104,1752419441068,-460.0,0.00016438,2]
[371759106,1752419441080,-460.0,0.00016438,2]
[371759108,1752419441090,-460.0,0.00016438,2]
[371759110,1752419441099,-460.0,0.00016438,2]
[371759112,1752419441108,-460.0,0.00016438,2]
[371759114,1752419441118,-460.0,0.00016438,2]
[371759116,1752419441127,-460.0,0.00016438,2]
[371759118,1752419441136,-460.0,0.00016438,2]
[371759120,1752419441145,-328.36631001,0.00016438,2]
[371759122,1752419441154,-460.0,0.00016438,2]
[371759123,1752419441163,-460.0,0.00016438,2]
[371759125,1752419441173,-460.0,0.00016438,2]
[371759127,1752419441185,-460.0,0.00016438,2]
[371759129,1752419441195,-460.0,0.00016438,2]
[371759131,1752419441204,-460.0,0.00016438,2]
[371759133,1752419441213,-460.0,0.00016438,2]
[371759135,1752419441223,-460.0,0.00016438,2]
[371759137,1752419441232,-462.0674942,0.00016438,2]
[371759139,1752419441242,-460.0,0.00016438,2]
[371759141,1752419441252,-460.0,0.00016438,2]
[371759143,1752419441261,-460.0,0.00016438,2]
[371759145,1752419441273,-460.0,0.00016438,2]
[371759147,1752419441282,-460.0,0.00016438,2]
[371759149,1752419441291,-456.42842994,0.00016438,2]
[371759151,1752419441300,-460.0,0.00016438,2]
[371759153,1752419441310,-460.0,0.00016438,2]
[371759155,1752419441320,-256.12894922,0.00016438,2]
[371759156,1752419441330,-465.64309169,0.00016438,2]
[371759158,1752419441339,-460.0,0.00016438,2]
[371759160,1752419441349,-460.0,0.00016438,2]
[371759162,1752419441359,-460.0,0.00016438,2]
[371759164,1752419441369,-460.0,0.00016438,2]
[371759166,1752419441380,-460.0,0.00016438,2]
[371759168,1752419441389,-460.86754799,0.00016438,2]
[371759169,1752419441399,-462.65789303,0.00016438,2]
[371759171,1752419441408,-461.45981307,0.00016438,2]
[371759173,1752419441418,-460.0,0.00016438,2]
[371759175,1752419441427,-460.0,0.00016438,2]
[371759177,1752419441437,-503.80994734,0.00016438,2]
[371759179,1752419441446,-460.0,0.00016438,2]
[371759181,1752419441455,-460.0,0.00016438,2]
[371759183,1752419441464,-460.0,0.00016438,2]
[371759184,1752419441474,-421.30059148,0.00016438,2]
[371759186,1752419441484,-460.0,0.00016438,2]
[371759188,1752419441493,-528.08275272,0.00016438,2]
[371759190,1752419441503,-462.16286766,0.00016438,2]
[371759192,1752419441512,-460.0,0.00016438,2]
[371759194,1752419441523,-460.0,0.00016438,2]
[371759196,1752419441532,-460.0,0.00016438,2]
[371759198,1752419441541,-230.0,0.00016438,2]
[371759200,1752419441551,-461.16862935,0.00016438,2]
[371759201,1752419441560,-460.0,0.00016438,2]
[371759203,1752419441569,-460.0,0.00016438,2]
[371759205,1752419441580,-460.0,0.00016438,2]
[371759207,1752419441591,-460.0,0.00016438,2]
[371759209,1752419441600,-460.0,0.00016438,2]
[371759211,1752419441609,-460.0,0.00016438,2]
[371759213,1752419441619,-460.0,0.00016438,2]
[371759214,1752419441629,-460.0,0.00016438,2]
[371759216,1752419441639,-460.0,0.00016438,2]
[371759218,1752419441647,-463.48377253,0.00016438,2]
[371759220,1752419441658,-460.0,0.00016438,2]
[371759222,1752419441668,-572.45117033,0.00016438,2]
[371759224,1752419441677,-462.1716682,0.00016438,2]
[371759225,1752419441686,-460.0,0.00016438,2]
[371759227,1752419441696,-461.23923489,0.00016438,2]
[371759229,1752419441705,-460.0,0.00016438,2]
[371759231,1752419441714,-460.0,0.00016438,2]
[371759233,1752419441723,-413.82952829,0.00016438,2]
[371759235,1752419441733,-460.0,0.00016438,2]
[371759237,1752419441742,-462.18682,0.00016438,2]
[371759239,1752419441751,-432.4449485,0.00016438,2]
[371759241,1752419441761,-460.0,0.00016438,2]
[371759242,1752419441773,-460.0,0.00016438,2]
[371759244,1752419441783,-330.95639208,0.00016438,2]
[371759246,1752419441792,-460.0,0.00016438,2]
[371759248,1752419441802,-211.96,0.00016438,2]
[371759250,1752419441811,-460.0,0.00016438,2]
[371759252,1752419441820,-460.87966923,0.00016438,2]
[371759254,1752419441829,-579.43887324,0.00016438,2]
[371759255,1752419441839,-460.0,0.00016438,2]
[371759257,1752419441848,-460.0,0.00016438,2]
[371759259,1752419441857,-460.0,0.00016438,2]
[371759271,1752419441972,-460.0,0.00016438,2]
[371759273,1752419441982,-460.0,0.00016438,2]
[371759275,1752419441991,-463.46972487,0.00016438,2]
[371759277,1752419442002,-460.0,0.00016438,2]
[371759279,1752419442012,-460.0,0.00016438,2]
[371759280,1752419442024,-464.10099605,0.00016438,2]
[371759282,1752419442033,-461.91466482,0.00016438,2]
[371759284,1752419442043,-460.0,0.00016438,2]
[371759286,1752419442052,-460.0,0.00016438,2]
[371759288,1752419442061,-460.0,0.00016438,2]
[371759290,1752419442071,-460.0,0.00016438,2]
[371759292,1752419442081,-460.49992275,0.00016438,2]
[371759294,1752419442093,-460.0,0.00016438,2]
[371759296,1752419442104,-460.0,0.00016438,2]
[371759298,1752419442114,-460.0,0.00016438,2]
[371759300,1752419442123,-460.0,0.00016438,2]
[371759301,1752419442132,-460.0,0.00016438,2]
[371759303,1752419442142,-460.0,0.00016438,2]
[371759305,1752419442151,-460.0,0.00016438,2]
[371759307,1752419442160,-460.0,0.00016438,2]
[371759309,1752419442170,-460.0,0.00016438,2]
[371759311,1752419442179,-460.0,0.00016438,2]
[371759313,1752419442190,-460.0,0.00016438,2]
[371759315,1752419442199,-461.07219898,0.00016438,2]
[371759317,1752419442209,-460.0,0.00016438,2]
[371759319,1752419442218,-460.0,0.00016438,2]
[371759320,1752419442227,-460.0,0.00016438,2]
[371759322,1752419442237,-460.0,0.00016438,2]
[371759324,1752419442247,-460.0,0.00016438,2]
[371759326,1752419442257,-461.14919405,0.00016438,2]
[371759328,1752419442266,-460.52879664,0.00016438,2]
[371759330,1752419442278,-460.0,0.00016438,2]
[371759332,1752419442288,-460.0,0.00016438,2]
[371759334,1752419442297,-460.0,0.00016438,2]
[371759336,1752419442307,-461.48394071,0.00016438,2]
[371759338,1752419442316,-460.8039434,0.00016438,2]
[371759340,1752419442325,-460.71999395,0.00016438,2]
[371759342,1752419442336,-460.0,0.00016438,2]
[371759344,1752419442345,-460.0,0.00016438,2]
[371759346,1752419442354,-462.9945073,0.00016438,2]
[371759347,1752419442365,-460.0,0.00016438,2]
[371759349,1752419442374,-460.0,0.00016438,2]
[371759351,1752419442383,-460.0,0.00016438,2]
[371759353,1752419442394,-460.0,0.00016438,2]
[371759355,1752419442403,-435.86464835,0.00016438,2]
[371759357,1752419442412,-460.0,0.00016438,2]
[371759359,1752419442422,-460.0,0.00016438,2]
[371759361,1752419442431,-460.0,0.00016438,2]
[371759363,1752419442441,-460.0,0.00016438,2]
[371759365,1752419442451,-460.0,0.00016438,2]
[371759366,1752419442460,-460.0,0.00016438,2]
[371759368,1752419442469,-460.0,0.00016438,2]
[371759370,1752419442478,-460.0,0.00016438,2]
[371759372,1752419442488,-2850.19,0.00016438,2]
[371759374,1752419442498,-460.0,0.00016438,2]
[371759376,1752419442507,-462.93067905,0.00016438,2]
[371759378,1752419442516,-460.0,0.00016438,2]
[371759380,1752419442528,-470.5682679,0.00016438,2]
[371759382,1752419442538,-460.0,0.00016438,2]
[371759384,1752419442547,-460.0,0.00016438,2]
[371759386,1752419442557,-460.0,0.00016438,2]
[371759388,1752419442566,-460.0,0.00016438,2]
[371759390,1752419442576,-517.19,0.00016438,2]
[371759392,1752419442590,-460.0,0.00016438,2]
[371759394,1752419442599,-564.42,0.00016438,2]
[371759396,1752419442608,-460.0,0.00016438,2]
[371759398,1752419442618,-460.0,0.00016438,2]
[371759399,1752419442627,-460.0,0.00016438,2]
[371759401,1752419442636,-460.0,0.00016438,2]
[371759403,1752419442646,-1941.3,0.00016438,2]
[371759405,1752419442656,-460.0,0.00016438,2]
[371759407,1752419442666,-462.07926312,0.00016438,2]
[371759409,1752419442675,-460.0,0.00016438,2]
[371759411,1752419442684,-461.67256005,0.00016438,2]
[371759413,1752419442693,-460.0,0.00016438,2]
[371759415,1752419442703,-781.28,0.00016438,2]
[371759417,1752419442712,-460.0,0.00016438,2]
[371759419,1752419442722,-460.0,0.00016438,2]
[371759421,1752419442731,-460.0,0.00016438,2]
[371759423,1752419442740,-461.15326299,0.00016438,2]
[371759424,1752419442750,-460.0,0.00016438,2]
[371759426,1752419442759,-460.0,0.00016438,2]
[371759428,1752419442770,-460.0,0.00016438,2]
[371759429,1752419442779,-451.07506527,0.00016438,2]
[371759430,1752419442789,-460.0,0.00016438,2]
[371759431,1752419442798,-460.0,0.00016438,2]
[371759432,1752419442808,-460.0,0.00016438,2]
[371759433,1752419442817,-460.0,0.00016438,2]
[371759434,1752419442827,-460.0,0.00016438,2]
[371759435,1752419442836,-461.52875611,0.00016438,2]
[371759436,1752419442846,-462.98211941,0.00016438,2]
[371759437,1752419442855,-460.0,0.00016438,2]
[371759438,1752419442864,-460.0,0.00016438,2]
[371759439,1752419442874,-461.46433879,0.00016438,2]
[371759440,1752419442883,-460.0,0.00016438,2]
[371759441,1752419442892,-460.0,0.00016438,2]
[371759442,1752419442901,-460.0,0.00016438,2]
[371759443,1752419442911,-460.0,0.00016438,2]
[371759444,1752419442920,-460.0,0.00016438,2]
[371759445,1752419442929,-460.0,0.00016438,2]
[371759446,1752419442938,-460.0,0.00016438,2]
[371759447,1752419442951,-460.0,0.00016438,2]
[371759448,1752419442965,-460.0,0.00016438,2]
[371759449,1752419442980,-460.0,0.00016438,2]
[371759450,1752419442992,-460.26637069,0.00016438,2]
[371759451,1752419443004,-460.0,0.00016438,2]
[371759452,1752419443018,-460.0,0.00016438,2]